fUST/lending_fUST_20250330
["ID","MTS","AMOUNT","RATE_DAILY","PERIOD"]
[356848005,1743324855854,-208.15066186,0.00017358,2]
[356848006,1743324864344,746.78,0.00010959,2]
[356848007,1743324874179,-196.4098005,0.00017358,2]
[356848008,1743324874822,622.32,0.00010959,2]
[356848009,1743324885344,518.6,0.00010959,2]
[356848010,1743324894937,-300.0,0.00016902,2]
[356848011,1743324895854,432.16,0.00010959,2]
[356848012,1743324906344,360.14,0.00010959,2]
[356848013,1743324913927,-223.22417693,0.00016902,2]
[356848014,1743324916839,300.11,0.00010959,2]
[356848015,1743324927364,250.09,0.00010959,2]
[356848016,1743324937842,208.41,0.00010959,2]
[356848017,1743324948417,173.68,0.00010959,2]
[356848018,1743324958936,868.41,0.00010959,2]
[356848019,1743324964101,-161.313294,0.00016902,2]
[356848020,1743324993229,-300.0,0.00016902,2]
[356848021,1743325024359,-235.64141489,0.00016902,2]
[356848022,1743325039254,-168.88,0.00016902,2]
[356848023,1743325084418,-262.80855199,0.00016733,2]
[356848024,1743325092584,262.81,0.00010959,2]
[356848026,1743325112232,-182.824014,0.00016532,2]
[356848027,1743325112253,-3.23232259,0.00016733,2]
[356848028,1743325123750,-226.54085418,0.00016733,2]
[356848029,1743325142260,-152.9667,0.00016733,2]
[356848030,1743325202208,-195.99239,0.00016733,2]
[356848031,1743325204008,-155.73614748,0.00016733,2]
[356848032,1743325230334,-198.95866888,0.00016566,2]
[356848033,1743325370812,-151.0,0.00016479,2]
[356848034,1743325416611,-250.0,0.00016314,2]
[356848035,1743325516052,-168.19779738,0.00016314,2]
[356848036,1743325563889,-278.25369454,0.00016314,2]
[356848037,1743325596052,-152.93349173,0.00016314,2]
[356848038,1743325599902,-157.40138,0.00016151,2]
[356848039,1743325606113,-800.0,0.0002744,10]
[356848040,1743325606139,-800.0,0.0002744,10]
[356848041,1743325606163,-800.0,0.0002744,10]
[356848042,1743325606188,-500.0,0.0002744,10]
[356848043,1743325606215,-500.0,0.0002744,10]
[356848044,1743325606239,-800.0,0.0002744,10]
[356848045,1743325606264,-500.0,0.0002744,10]
[356848046,1743325606288,-500.0,0.0002744,10]
[356848047,1743325606314,-800.0,0.0002744,10]
[356848048,1743325606338,-500.0,0.0002744,10]
[356848049,1743325606362,-500.0,0.0002744,10]
[356848050,1743325606387,-800.0,0.0002744,10]
[356848051,1743325606412,-500.0,0.0002744,10]
[356848052,1743325606438,-800.0,0.0002744,10]
[356848053,1743325606462,-500.0,0.0002744,10]
[356848054,1743325606487,-800.0,0.0002744,10]
[356848055,1743325606511,-500.0,0.0002744,10]
[356848056,1743325606536,-800.0,0.0002744,10]
[356848057,1743325606561,-500.0,0.0002744,10]
[356848058,1743325606585,-800.0,0.0002744,10]
[356848059,1743325606611,-800.0,0.0002744,10]
[356848060,1743325606636,-500.0,0.0002744,10]
[356848061,1743325606662,-800.0,0.0002744,10]
[356848062,1743325606686,-500.0,0.0002744,10]
[356848063,1743325606711,-500.0,0.0002744,10]
[356848064,1743325606752,-500.0,0.0002744,10]
[356848065,1743325606782,-800.0,0.0002744,10]
[356848066,1743325606808,-800.0,0.0002744,10]
[356848067,1743325606836,-500.0,0.0002744,10]
[356848068,1743325606862,-500.0,0.0002744,10]
[356848069,1743325607132,-500.0,0.0002744,10]
[356848070,1743325607158,-500.0,0.0002744,10]
[356848071,1743325607182,-500.0,0.0002744,10]
[356848072,1743325607208,-757.65207923,0.0002744,10]
[356848073,1743325607235,-500.0,0.0002744,10]
[356848074,1743325607260,-500.0,0.0002744,10]
[356848075,1743325607285,-500.0,0.0002744,10]
[356848076,1743325607315,-500.0,0.0002744,10]
[356848077,1743325607340,-300.0,0.000276,13]
[356848078,1743325607366,-835.47628717,0.00028,10]
[356848079,1743325607393,-777.0,0.00028,120]
[356848080,1743325607419,-151.229717,0.00028388,14]
[356848081,1743325607444,-395.840784,0.000291,14]
[356848082,1743325607469,-3000.0,0.0003,30]
[356848083,1743325607493,-5638.71329228,0.0003,60]
[356848084,1743325607518,-3866.0,0.0003,30]
[356848085,1743325607544,-1000.0,0.0003,120]
[356848086,1743325607569,-226.38,0.0003,120]
[356848087,1743325622207,-175.159423,0.00016151,2]
[356848088,1743325634133,-1730.91585191,0.00016151,2]
[356848089,1743325634825,-167.60647244,0.00016151,2]
[356848090,1743325637095,-2768.91687265,0.00016151,2]
[356848091,1743325637118,-300.0,0.00016345,2]
[356848092,1743325637139,-10000.0,0.00016346,2]
[356848093,1743325637164,-500.0,0.00016478,2]
[356848094,1743325637189,-1001.65487647,0.00016478,2]
[356848095,1743325643132,-389.33354028,0.00016478,2]
[356848096,1743325643155,-500.0,0.00016478,2]
[356848097,1743325643180,-207.8839599,0.00016478,2]
[356848098,1743325643202,-154.71305417,0.00016478,2]
[356848099,1743325643230,-1390.98841675,0.00016478,2]
[356848100,1743325643255,-326.08827743,0.00016478,2]
[356848101,1743325643279,-500.0,0.00016478,2]
[356848102,1743325643307,-1390.98841675,0.00016478,2]
[356848103,1743325643331,-500.0,0.00016478,2]
[356848104,1743325643354,-1390.98841675,0.00016478,2]
[356848105,1743325643379,-1390.98841675,0.00016478,2]
[356848106,1743325643401,-500.0,0.00016478,2]
[356848107,1743325643424,-1390.98841675,0.00016478,2]
[356848108,1743325643446,-500.0,0.00016478,2]
[356848109,1743325643468,-500.0,0.00016478,2]
[356848110,1743325643492,-1390.98841675,0.00016478,2]
[356848111,1743325643735,-500.0,0.00016478,2]
[356848112,1743325643762,-568.19728645,0.00016478,2]
[356848113,1743325708707,-154.1903839,0.00016053,2]
[356848114,1743325745253,-95.8096161,0.00016053,2]
[356848115,1743325745274,-833.05770714,0.00016313,2]
[356848116,1743325748099,-2614.25248958,0.00016313,2]
[356848117,1743325748121,-500.0,0.00016477,2]
[356848118,1743325748146,-501.75584803,0.00016477,2]
[356848119,1743325748169,-500.0,0.00016477,2]
[356848120,1743325748191,-500.0,0.00016477,2]
[356848121,1743325748216,-675.90235134,0.00016477,2]
[356848122,1743325748243,-675.90235134,0.00016477,2]
[356848123,1743325748265,-500.0,0.00016477,2]
[356848124,1743325748296,-675.90235134,0.00016477,2]
[356848125,1743325748332,-675.90235134,0.00016477,2]
[356848126,1743325748374,-500.0,0.00016477,2]
[356848127,1743325748410,-675.90235134,0.00016477,2]
[356848128,1743325748433,-675.90235134,0.00016477,2]
[356848129,1743325748456,-203.37168099,0.00016477,2]
[356848130,1743325748480,-675.90235134,0.00016477,2]
[356848131,1743325748504,-675.90235134,0.00016477,2]
[356848132,1743325748528,-675.90235134,0.00016477,2]
[356848133,1743325748551,-675.90235134,0.00016477,2]
[356848134,1743325748572,-500.0,0.00016477,2]
[356848135,1743325748597,-675.90235134,0.00016477,2]
[356848136,1743325748620,-675.90235134,0.00016477,2]
[356848137,1743325748643,-675.90235134,0.00016477,2]
[356848138,1743325748666,-675.90235134,0.00016477,2]
[356848139,1743325748699,-675.90235134,0.00016477,2]
[356848140,1743325748740,-675.90235134,0.00016477,2]
[356848141,1743325748781,-675.90235134,0.00016477,2]
[356848142,1743325748813,-675.90235134,0.00016477,2]
[356848143,1743325748837,-675.90235134,0.00016477,2]
[356848144,1743325748861,-675.90235134,0.00016477,2]
[356848145,1743325748885,-675.90235134,0.00016477,2]
[356848146,1743325748911,-675.90235134,0.00016477,2]
[356848147,1743325748935,-675.90235134,0.00016477,2]
[356848148,1743325748960,-675.90235134,0.00016477,2]
[356848149,1743325748985,-675.90235134,0.00016477,2]
[356848150,1743325749010,-675.90235134,0.00016477,2]
[356848151,1743325749035,-675.90235134,0.00016477,2]
[356848152,1743325749066,-675.90235134,0.00016477,2]
[356848153,1743325749094,-675.90235134,0.00016477,2]
[356848154,1743325749126,-675.90235134,0.00016477,2]
[356848155,1743325749152,-675.90235134,0.00016477,2]
[356848156,1743325749178,-675.90235134,0.00016477,2]
[356848157,1743325749208,-675.90235134,0.00016477,2]
[356848158,1743325749236,-675.90235134,0.00016477,2]
[356848159,1743325749272,-675.90235134,0.00016477,2]
[356848160,1743325749306,-675.90235134,0.00016477,2]
[356848161,1743325749342,-675.90235134,0.00016477,2]
[356848162,1743325749369,-675.90235134,0.00016477,2]
[356848163,1743325749400,-675.90235134,0.00016477,2]
[356848164,1743325749431,-675.90235134,0.00016477,2]
[356848165,1743325749461,-675.90235134,0.00016477,2]
[356848166,1743325749492,-675.90235134,0.00016477,2]
[356848167,1743325749522,-675.90235134,0.00016477,2]
[356848168,1743325749551,-675.90235134,0.00016477,2]
[356848169,1743325749580,-675.90235134,0.00016477,2]
[356848170,1743325749609,-675.90235134,0.00016477,2]
[356848171,1743325749635,-675.90235134,0.00016477,2]
[356848172,1743325749664,-675.90235134,0.00016477,2]
[356848173,1743325749694,-675.90235134,0.00016477,2]
[356848174,1743325749724,-675.90235134,0.00016477,2]
[356848175,1743325749756,-675.90235134,0.00016477,2]
[356848176,1743325749790,-675.90235134,0.00016477,2]
[356848177,1743325749815,-675.90235134,0.00016477,2]
[356848178,1743325749842,-675.90235134,0.00016477,2]
[356848179,1743325749871,-675.90235134,0.00016477,2]
[356848180,1743325749900,-675.90235134,0.00016477,2]
[356848181,1743325749927,-675.90235134,0.00016477,2]
[356848182,1743325749955,-675.90235134,0.00016477,2]
[356848183,1743325749981,-675.90235134,0.00016477,2]
[356848184,1743325750007,-2444.0565566,0.00016477,2]
[356848185,1743325750034,-2444.0565566,0.00016477,2]
[356848186,1743325750062,-2444.0565566,0.00016477,2]
[356848187,1743325750088,-2444.0565566,0.00016477,2]
[356848188,1743325750115,-2444.0565566,0.00016477,2]
[356848189,1743325750141,-2444.0565566,0.00016477,2]
[356848190,1743325750168,-1659.048461,0.00016477,2]
[356848198,1743325832570,-657.48900465,0.00016312,2]
[356848199,1743325832580,-1350.2486027,0.00016377,2]
[356848200,1743325832711,-596.65761564,0.00016377,2]
[356848201,1743325832720,-190.61662109,0.00016377,2]
[356848202,1743325832730,-500.0,0.00016476,2]
[356848203,1743325832739,-551.22909362,0.00016476,2]
[356848204,1743325832749,-300.0,0.00016476,2]
[356848205,1743325832758,-50000.0,0.00016477,2]
[356848206,1743325832768,-1209.3589856,0.00016479,2]
[356848207,1743325832777,-500.0,0.000165,2]
[356848208,1743325832787,-500.0,0.000165,2]
[356848209,1743325832796,-500.0,0.000165,2]
[356848210,1743325832806,-500.0,0.000165,2]
[356848211,1743325832815,-339.31566573,0.000165,2]
[356848212,1743325832824,-500.0,0.000165,2]
[356848213,1743325832834,-292.89138871,0.000165,2]
[356848214,1743325832843,-500.0,0.000165,2]
[356848215,1743325832853,-461.97313537,0.000165,2]
[356848216,1743325832863,-500.0,0.000165,2]
[356848217,1743325832872,-500.0,0.000165,2]
[356848218,1743325832882,-500.0,0.000165,2]
[356848219,1743325832891,-500.0,0.00016733,2]
[356848220,1743325832901,-500.0,0.00016733,2]
[356848221,1743325832911,-196.4098005,0.00016733,2]
[356848222,1743325832920,-157.9177893,0.000168,2]
[356848223,1743325832930,-500.0,0.000168,2]
[356848224,1743325832940,-500.0,0.000168,2]
[356848225,1743325832949,-500.0,0.000168,2]
[356848226,1743325832959,-152.0,0.00016896,2]
[356848227,1743325832969,-91.14054218,0.00016902,2]
[356848228,1743325832978,-190.61662108,0.00017052,2]
[356848229,1743325832987,-421.74799589,0.00017533,2]
[356848230,1743325833008,-606.84252089,0.00017533,2]
[356848231,1743325833020,-2816.53095244,0.00017533,2]
[356848236,1743325839525,-725.92098942,0.00016476,2]
[356848237,1743325839535,-725.92098942,0.00016476,2]
[356848238,1743325839545,-725.92098942,0.00016476,2]
[356848239,1743325839554,-725.92098942,0.00016476,2]
[356848240,1743325839563,-725.92098942,0.00016476,2]
[356848241,1743325839573,-725.92098942,0.00016476,2]
[356848242,1743325839583,-725.92098942,0.00016476,2]
[356848243,1743325839593,-722.80552132,0.00016476,2]
[356848244,1743325839831,-3.1154681,0.00016476,2]
[356848245,1743325839841,-725.92098942,0.00016476,2]
[356848246,1743325839850,-725.92098942,0.00016476,2]
[356848247,1743325839860,-44.16995514,0.00016476,2]
[356848303,1743326060642,570.04,0.00010959,2]
[356848304,1743326071155,475.04,0.00010959,2]
[356848305,1743326082120,395.86,0.00010959,2]
[356848306,1743326092611,329.89,0.00010959,2]
[356848307,1743326103120,274.91,0.00010959,2]
[356848308,1743326108115,-244.87850032,0.0001542,2]
[356848309,1743326113582,229.09,0.00010959,2]
[356848310,1743326124063,190.91,0.00010959,2]
[356848311,1743326134570,159.09,0.00010959,2]
[356848312,1743326145053,795.46,0.00010959,2]
[356848313,1743326147827,-195.99239,0.00015266,2]
[356848314,1743326331702,-198.71719148,0.00015113,2]
[356848316,1743326442773,175.81830336,0.0003,10]
[356848317,1743326515565,698.81622782,0.0003,10]
[356848320,1743326839095,-204.1785857,0.00014469,2]
[356848321,1743326839117,-169.74423895,0.00015263,2]
[356848322,1743326839141,-300.0,0.00015362,2]
[356848323,1743326839164,-1304.19645972,0.00015363,2]
[356848326,1743326911660,-218.49776043,0.0001446,2]
[356848327,1743326922412,283.12114704,0.0002,20]
[356848328,1743326923204,5136.36145477,0.000212,30]
[356848331,1743326929654,282.32717275,0.0003,10]
[356848332,1743326940119,-172.87853869,0.00014392,2]
[356848333,1743326944744,-176.92108597,0.00014392,2]
[356848334,1743326949144,-2146.53345774,0.00014392,2]
[356848335,1743326949166,-300.0,0.00014459,2]
[356848336,1743326949188,-69929.35953947,0.0001446,2]
[356848337,1743326949210,-1815.28297256,0.00015263,2]
[356848338,1743326949230,-8695.80354028,0.00015363,2]
[356848339,1743326949251,-500.0,0.00015382,2]
[356848340,1743326949272,-235.86036554,0.00015382,2]
[356848341,1743326949296,-500.0,0.00015382,2]
[356848342,1743326949320,-970.27762807,0.00015382,2]
[356848343,1743326949344,-970.27762807,0.00015382,2]
[356848344,1743326949366,-500.0,0.00015382,2]
[356848345,1743326949389,-970.27762807,0.00015382,2]
[356848346,1743326949411,-500.0,0.00015382,2]
[356848347,1743326949434,-970.27762807,0.00015382,2]
[356848348,1743326949456,-970.27762807,0.00015382,2]
[356848349,1743326949478,-520.3371681,0.00015382,2]
[356848350,1743326949500,-970.27762807,0.00015382,2]
[356848351,1743326949523,-970.27762807,0.00015382,2]
[356848352,1743326949545,-970.27762807,0.00015382,2]
[356848353,1743326949569,-970.27762807,0.00015382,2]
[356848354,1743326949591,-970.27762807,0.00015382,2]
[356848355,1743326949615,-970.27762807,0.00015382,2]
[356848356,1743326949639,-970.27762807,0.00015382,2]
[356848357,1743326949662,-970.27762807,0.00015382,2]
[356848358,1743326949685,-970.27762807,0.00015382,2]
[356848359,1743326949708,-970.27762807,0.00015382,2]
[356848360,1743326949730,-970.27762807,0.00015382,2]
[356848361,1743326949752,-970.27762807,0.00015382,2]
[356848362,1743326949775,-970.27762807,0.00015382,2]
[356848363,1743326949797,-970.27762807,0.00015382,2]
[356848364,1743326949819,-970.27762807,0.00015382,2]
[356848365,1743326949842,-970.27762807,0.00015382,2]
[356848366,1743326949865,-970.27762807,0.00015382,2]
[356848367,1743326949887,-970.27762807,0.00015382,2]
[356848368,1743326949910,-970.27762807,0.00015382,2]
[356848369,1743326949931,-970.27762807,0.00015382,2]
[356848370,1743326949953,-970.27762807,0.00015382,2]
[356848371,1743326949976,-970.27762807,0.00015382,2]
[356848372,1743326949998,-970.27762807,0.00015382,2]
[356848373,1743326950022,-970.27762807,0.00015382,2]
[356848374,1743326950045,-970.27762807,0.00015382,2]
[356848375,1743326950068,-970.27762807,0.00015382,2]
[356848376,1743326950091,-970.27762807,0.00015382,2]
[356848377,1743326950114,-970.27762807,0.00015382,2]
[356848378,1743326950137,-970.27762807,0.00015382,2]
[356848379,1743326950159,-970.27762807,0.00015382,2]
[356848380,1743326950182,-970.27762807,0.00015382,2]
[356848381,1743326950204,-970.27762807,0.00015382,2]
[356848382,1743326950226,-970.27762807,0.00015382,2]
[356848383,1743326950249,-970.27762807,0.00015382,2]
[356848384,1743326950270,-970.27762807,0.00015382,2]
[356848385,1743326950293,-970.27762807,0.00015382,2]
[356848386,1743326950315,-970.27762807,0.00015382,2]
[356848387,1743326950337,-970.27762807,0.00015382,2]
[356848388,1743326950360,-970.27762807,0.00015382,2]
[356848389,1743326950382,-970.27762807,0.00015382,2]
[356848390,1743326950405,-970.27762807,0.00015382,2]
[356848391,1743326950428,-970.27762807,0.00015382,2]
[356848392,1743326950451,-970.27762807,0.00015382,2]
[356848393,1743326950473,-970.27762807,0.00015382,2]
[356848394,1743326950496,-970.27762807,0.00015382,2]
[356848395,1743326950518,-970.27762807,0.00015382,2]
[356848396,1743326950541,-970.27762807,0.00015382,2]
[356848397,1743326950565,-970.27762807,0.00015382,2]
[356848398,1743326950588,-970.27762807,0.00015382,2]
[356848399,1743326950610,-970.27762807,0.00015382,2]
[356848400,1743326950635,-970.27762807,0.00015382,2]
[356848401,1743326950658,-970.27762807,0.00015382,2]
[356848402,1743326950680,-970.27762807,0.00015382,2]
[356848403,1743326950702,-970.27762807,0.00015382,2]
[356848404,1743326950725,-970.27762807,0.00015382,2]
[356848405,1743326950747,-970.27762807,0.00015382,2]
[356848406,1743326950770,-970.27762807,0.00015382,2]
[356848407,1743326950792,-970.27762807,0.00015382,2]
[356848408,1743326950814,-970.27762807,0.00015382,2]
[356848409,1743326950837,-943.10985448,0.00015382,2]
[356848410,1743326950861,-943.10985448,0.00015382,2]
[356848411,1743326950884,-943.10985448,0.00015382,2]
[356848412,1743326950906,-943.10985448,0.00015382,2]
[356848413,1743326950928,-943.10985448,0.00015382,2]
[356848414,1743326950951,-943.10985448,0.00015382,2]
[356848415,1743326950975,-943.10985448,0.00015382,2]
[356848416,1743326950998,-943.10985448,0.00015382,2]
[356848417,1743326951025,-943.10985448,0.00015382,2]
[356848418,1743326951048,-943.10985448,0.00015382,2]
[356848419,1743326951071,-943.10985448,0.00015382,2]
[356848420,1743326951095,-943.10985448,0.00015382,2]
[356848421,1743326951120,-943.10985448,0.00015382,2]
[356848422,1743326951144,-943.10985448,0.00015382,2]
[356848423,1743326951167,-943.10985448,0.00015382,2]
[356848424,1743326951190,-943.10985448,0.00015382,2]
[356848425,1743326951214,-943.10985448,0.00015382,2]
[356848426,1743326951238,-943.10985448,0.00015382,2]
[356848427,1743326951260,-943.10985448,0.00015382,2]
[356848428,1743326951282,-943.10985448,0.00015382,2]
[356848429,1743326951305,-943.10985448,0.00015382,2]
[356848430,1743326951327,-943.10985448,0.00015382,2]
[356848431,1743326951349,-943.10985448,0.00015382,2]
[356848432,1743326951372,-943.10985448,0.00015382,2]
[356848433,1743326951394,-50000.0,0.00015383,2]
[356848434,1743326951417,-190.61662108,0.00015384,2]
[356848435,1743326951442,-4.49818838,0.0001542,2]
[356848436,1743326951465,-500.0,0.0001545,2]
[356848437,1743326951485,-501.78322565,0.0001545,2]
[356848438,1743326951505,-500.0,0.0001545,2]
[356848439,1743326951524,-500.0,0.0001545,2]
[356848440,1743326951545,-500.0,0.0001545,2]
[356848441,1743326951564,-160.81226179,0.0001545,2]
[356848442,1743326951585,-500.0,0.0001545,2]
[356848443,1743326951605,-500.0,0.0001545,2]
[356848444,1743326951625,-345.36266738,0.0001545,2]
[356848445,1743326951645,-246.48621604,0.0001545,2]
[356848446,1743326951665,-501.34821516,0.0001545,2]
[356848447,1743326951684,-177.26579815,0.0001545,2]
[356848448,1743326951704,-500.0,0.0001545,2]
[356848449,1743326951724,-502.88389539,0.0001545,2]
[356848450,1743326951744,-500.0,0.0001545,2]
[356848451,1743326951765,-506.68139524,0.0001545,2]
[356848452,1743326951786,-501.38151331,0.0001545,2]
[356848453,1743326951806,-506.12964066,0.0001545,2]
[356848454,1743326951826,-500.0,0.0001545,2]
[356848455,1743326951846,-506.26439486,0.0001545,2]
[356848456,1743326951866,-500.0,0.0001545,2]
[356848457,1743326951886,-501.05443195,0.0001545,2]
[356848458,1743326951907,-500.0,0.0001545,2]
[356848459,1743326951928,-163.77620249,0.0001545,2]
[356848460,1743326951948,-293.14232603,0.0001545,2]
[356848461,1743326951969,-439.56118912,0.0001545,2]
[356848462,1743326951989,-504.50176867,0.0001545,2]
[356848463,1743326952011,-500.0,0.0001545,2]
[356848464,1743326952033,-154.52640514,0.0001545,2]
[356848465,1743326952230,-166.7616045,0.0001545,2]
[356848466,1743326952252,-500.0,0.0001545,2]
[356848467,1743326952272,-288.48616928,0.0001545,2]
[356848468,1743326952293,-500.0,0.0001545,2]
[356848469,1743326952315,-502.6683568,0.0001545,2]
[356848470,1743326952334,-502.0931557,0.0001545,2]
[356848471,1743326952354,-500.0,0.0001545,2]
[356848472,1743326952375,-269.56574684,0.0001545,2]
[356848473,1743326952395,-500.0,0.0001545,2]
[356848474,1743326952416,-20394.2982637,0.00015486,2]
[356848475,1743326952437,-504.13799482,0.000156,2]
[356848476,1743326952458,-420.0,0.00015833,2]
[356848477,1743326952479,-156.17976718,0.0001586,2]
[356848478,1743326952499,-500.0,0.0001586,2]
[356848479,1743326952519,-500.0,0.0001586,2]
[356848480,1743326952540,-514.65068798,0.0001586,2]
[356848481,1743326952561,-500.0,0.0001586,2]
[356848482,1743326952583,-504.11136017,0.000161,2]
[356848483,1743326952605,-500.0,0.000161,2]
[356848484,1743326952625,-500.0,0.000161,2]
[356848485,1743326952645,-206.67974558,0.000161,2]
[356848486,1743326952666,-24900.0,0.00016353,2]
[356848487,1743326952686,-500.0,0.000164,2]
[356848488,1743326952706,-500.0,0.000164,2]
[356848489,1743326952727,-500.54168436,0.00016425,2]
[356848490,1743326952748,-501.49431144,0.00016425,2]
[356848491,1743326952768,-500.0,0.00016425,2]
[356848492,1743326952788,-1000.0,0.00016476,2]
[356848493,1743326952809,-1000.0,0.00016476,2]
[356848494,1743326952830,-502.62569481,0.000165,2]
[356848495,1743326952853,-489.608572,0.000165,2]
[356848496,1743326952874,-489.608572,0.000165,2]
[356848497,1743326952895,-740.099714,0.00016656,2]
[356848498,1743326952917,-151.0,0.00016656,2]
[356848499,1743326952938,-489.608572,0.00016656,2]
[356848500,1743326952958,-489.608572,0.00016656,2]
[356848501,1743326952980,-1815.28297254,0.00016766,2]
[356848502,1743326953000,-424.13357121,0.00017,2]
[356848503,1743326953030,-190.61662108,0.00017231,2]
[356848504,1743326953053,-587.0,0.00017338,2]
[356848505,1743326953074,-156.02965223,0.000174,2]
[356848506,1743326953096,-1000.0,0.00017526,2]
[356848507,1743326953118,-1000.0,0.00017526,2]
[356848508,1743326953141,-150.07816225,0.00017526,2]
[356848509,1743326953163,-189.56293509,0.00017533,2]
[356848510,1743326953184,-168.88,0.00018,2]
[356848511,1743326953208,-2538.79065277,0.00018,2]
[356848512,1743326954766,151.229717,0.00025794,10]
[356848513,1743326955069,-943.1098544,0.00015382,2]
[356848514,1743326963142,-8433.06704812,0.00018,2]
[356848515,1743326965884,43.7501456,0.00015382,2]
[356848516,1743326972105,-249.15933346,0.00015382,2]
[356848521,1743327003701,211.40455739,0.00015425,2]
[356848522,1743327004353,29.43610915,0.00015425,2]
[356848546,1743327032369,-470.56389085,0.00015425,2]
[356848547,1743327032378,-159.588094,0.00016656,2]
[356848548,1743327032387,-24900.0,0.0001699,2]
[356848549,1743327032396,-853.396841,0.00017067,2]
[356848550,1743327032405,-784.0168224,0.00017959,2]
[356848551,1743327032414,-300.0,0.00017999,2]
[356848552,1743327032424,-10617.81966595,0.00018,2]
[356848603,1743327237545,500.0,0.00029,120]
[356848604,1743327238037,500.0,0.00029,120]
[356848605,1743327238805,500.0,0.00029,120]
[356848606,1743327239552,500.0,0.00029,120]
[356848607,1743327240365,548.3,0.00029,120]
[356848608,1743327298173,-180.192473,0.00016817,2]
[356848609,1743327302138,-180.192473,0.00016817,2]
[356848610,1743327329345,-180.192473,0.00016887,2]
[356848611,1743327331166,2387.23152561,0.0003,10]
[356848612,1743327360149,-172.63844085,0.00016887,2]
[356848613,1743327360836,-172.63844085,0.00016887,2]
[356848614,1743327365363,-152.27921964,0.00016887,2]
[356848615,1743327392500,-270.18960919,0.00016887,2]
[356848616,1743327400735,-202.39100001,0.0001635,2]
[356848617,1743327408294,472.58,0.00010959,2]
[356848618,1743327429256,-300.0,0.00016349,2]
[356848619,1743327429280,-35.9108849,0.0001635,2]
[356848620,1743327434221,-159.247357,0.0001635,2]
[356848621,1743327439764,335.91,0.00010959,2]
[356848622,1743327450275,159.25,0.00010959,2]
[356848623,1743327483792,-164.97350521,0.00016349,2]
[356848624,1743327489925,-135.02649479,0.00016349,2]
[356848625,1743327489947,-46.28521434,0.0001635,2]
[356848626,1743327494001,-234.0697124,0.0001635,2]
[356848627,1743327499205,-152.86131706,0.0001635,2]
[356848628,1743327501710,346.28,0.00010959,2]
[356848629,1743327544878,-153.92089248,0.00016349,2]
[356848630,1743327547678,-146.07910752,0.00016349,2]
[356848631,1743327547701,-118.16049248,0.0001635,2]
[356848632,1743327550975,-51.07402181,0.0001635,2]
[356848633,1743327551000,-148.92597819,0.0001635,2]
[356848634,1743327554913,151.229717,0.00025794,10]
[356848635,1743327570269,-228.36155915,0.00016126,2]
[356848636,1743327604711,-193.390421,0.00016014,2]
[356848637,1743327604743,-24.95080372,0.00016126,2]
[356848638,1743327617722,-445.22408671,0.00016125,2]
[356848639,1743327624456,-180.40614429,0.00016125,2]
[356848640,1743327632335,-163.55115484,0.00016125,2]
[356848641,1743327635756,-199.5499761,0.00015643,2]
[356848642,1743327635779,-100.4500239,0.00016125,2]
[356848643,1743327820259,-299.97755141,0.00016,2]
[356848644,1743327842756,-222.03702004,0.00016,2]
[356848645,1743327964423,-154.71305417,0.00015123,2]
[356848646,1743328027118,-215.93792844,0.00015054,2]
[356848647,1743328036177,-34.06207156,0.00015054,2]
[356848648,1743328036198,-120.83099668,0.00015122,2]
[356848649,1743328053083,-179.16900332,0.00015122,2]
[356848650,1743328053106,-500.0,0.00015123,2]
[356848651,1743328053128,-189.90286157,0.00015123,2]
[356848652,1743328053150,-183.57381355,0.00015123,2]
[356848653,1743328053172,-226.79847424,0.00015123,2]
[356848654,1743328053195,-500.0,0.00015123,2]
[356848655,1743328053222,-500.0,0.00015123,2]